fUSD/lending_fUSD_20251201
["ID","MTS","AMOUNT","RATE_DAILY","PERIOD"]
[395304865,1764601859789,-150.0,0.00024986,4]
[395304866,1764601859799,-150.0,0.00024986,4]
[395304867,1764601859811,-150.0,0.00024986,4]
[395304868,1764601859820,-198.22963934,0.00024986,4]
[395304869,1764601859829,-187.30887431,0.00024986,4]
[395304870,1764601859839,-150.0,0.00024986,4]
[395304871,1764601859849,-150.0,0.00024986,4]
[395304872,1764601859859,-150.0,0.00024989,2]
[395304873,1764601859868,-150.0,0.00024991,2]
[395304874,1764601859878,-200.0,0.00024999,7]
[395304875,1764601859889,-200.0,0.00024999,7]
[395304876,1764601859899,-200.0,0.00024999,7]
[395304877,1764601859909,-200.0,0.00024999,7]
[395304878,1764601859918,-386.59717135,0.00025,2]
[395304879,1764601859928,-465533.99336968,0.00025,2]
[395304880,1764601859938,-1000.0,0.00025,7]
[395304881,1764601859948,-3063.6996986,0.00025,2]
[395304882,1764601859957,-150.0,0.00025,2]
[395304883,1764601859967,-150.0,0.00025,2]
[395304884,1764601859976,-150.0,0.00025,2]
[395304885,1764601859985,-150.0,0.00025,2]
[395304886,1764601859995,-150.0,0.00025,2]
[395304887,1764601860005,-150.0,0.00025,2]
[395304888,1764601860015,-150.0,0.00025,2]
[395304889,1764601860025,-150.0,0.00025,2]
[395304890,1764601860036,-150.0,0.00025,2]
[395304891,1764601860045,-206.071,0.00025,2]
[395304892,1764601860056,-150.0,0.00025,2]
[395304893,1764601860066,-427.65493559,0.00025,7]
[395304894,1764601860076,-450.0,0.00025,2]
[395304895,1764601860086,-151.0,0.00025,7]
[395304896,1764601860095,-151.0,0.00025,7]
[395304897,1764601860105,-194.134172,0.00025,7]
[395304898,1764601860115,-152.535483,0.00025,7]
[395304899,1764601860125,-151.0,0.00025,7]
[395304900,1764601860135,-222.804995,0.00025,7]
[395304901,1764601860145,-151.0,0.00025,7]
[395304902,1764601860155,-151.0,0.00025,7]
[395304903,1764601860164,-151.0,0.00025,7]
[395304904,1764601860174,-151.0,0.00025,7]
[395304905,1764601860184,-151.0,0.00025,7]
[395304906,1764601860194,-399.718461,0.00025,7]
[395304907,1764601860204,-151.0,0.00025,7]
[395304908,1764601860213,-399.718461,0.00025,7]
[395304909,1764601860223,-399.718461,0.00025,7]
[395304910,1764601860233,-399.718461,0.00025,7]
[395304911,1764601860243,-151.0,0.00025,7]
[395304912,1764601860253,-151.0,0.00025,7]
[395304913,1764601860263,-153.540753,0.00025,7]
[395304914,1764601860273,-151.0,0.00025,7]
[395304915,1764601860282,-152.051019,0.00025,7]
[395304916,1764601860292,-151.0,0.00025,7]
[395304917,1764601860301,-151.0,0.00025,7]
[395304918,1764601860311,-151.0,0.00025,7]
[395304919,1764601860321,-287.694352,0.00025,7]
[395304920,1764601860331,-151.0,0.00025,7]
[395304921,1764601860341,-167.078132,0.00025,7]
[395304922,1764601860350,-151.0,0.00025,7]
[395304923,1764601860360,-151.0,0.00025,7]
[395304924,1764601860370,-151.0,0.00025,7]
[395304925,1764601860379,-151.0,0.00025,7]
[395304926,1764601860389,-151.0,0.00025,7]
[395304927,1764601860399,-151.0,0.00025,7]
[395304928,1764601860409,-151.0,0.00025,7]
[395304929,1764601860419,-151.0,0.00025,7]
[395304930,1764601860431,-151.0,0.00025,7]
[395304931,1764601860441,-151.0,0.00025,7]
[395304932,1764601860453,-151.0,0.00025,7]
[395304933,1764601860464,-150.0,0.00025,2]
[395304934,1764601860475,-151.0,0.00025,7]
[395304935,1764601860485,-151.0,0.00025,7]
[395304936,1764601860496,-175.70054234,0.00025,2]
[395304937,1764601860506,-192.71686,0.00025,7]
[395304938,1764601860517,-151.0,0.00025,7]
[395304939,1764601860527,-151.0,0.00025,7]
[395304940,1764601860537,-165.853873,0.00025,7]
[395304941,1764601860547,-165.853873,0.00025,7]
[395304942,1764601860558,-165.853873,0.00025,7]
[395304943,1764601860567,-165.853873,0.00025,7]
[395304944,1764601860578,-151.0,0.00025,7]
[395304945,1764601860587,-200.0,0.00025,2]
[395304946,1764601860597,-151.0,0.00025,7]
[395304947,1764601860608,-214.978651,0.00025,7]
[395304948,1764601860618,-832.30228,0.00025,7]
[395304949,1764601860627,-832.30228,0.00025,7]
[395304950,1764601860637,-832.30228,0.00025,7]
[395304951,1764601860647,-832.30228,0.00025,7]
[395304952,1764601860657,-151.0,0.00025,7]
[395304953,1764601860667,-564.600561,0.00025,7]
[395304954,1764601860679,-2834.055173,0.00025,7]
[395304955,1764601860689,-564.600561,0.00025,7]
[395304956,1764601860699,-564.600561,0.00025,7]
[395304957,1764601860709,-2834.055173,0.00025,7]
[395304958,1764601860720,-564.600561,0.00025,7]
[395304959,1764601860730,-2834.055173,0.00025,7]
[395304960,1764601860740,-2834.055173,0.00025,7]
[395304961,1764601860749,-151.0,0.00025,7]
[395304962,1764601860759,-651.399818,0.00025,7]
[395304963,1764601860769,-151.0,0.00025,7]
[395304964,1764601860779,-651.399818,0.00025,7]
[395304965,1764601860790,-151.0,0.00025,7]
[395304966,1764601860801,-651.399818,0.00025,7]
[395304967,1764601860813,-2805.437929,0.00025,7]
[395304968,1764601860824,-651.399818,0.00025,7]
[395304969,1764601860834,-2805.437929,0.00025,7]
[395304970,1764601860846,-151.0,0.00025,7]
[395304971,1764601860857,-151.0,0.00025,7]
[395304972,1764601860869,-2805.437929,0.00025,7]
[395304973,1764601860881,-290.348752,0.00025,7]
[395304974,1764601860892,-2805.437929,0.00025,7]
[395304975,1764601860903,-7000.0,0.00025,2]
[395304976,1764601860916,-200.0,0.00025,2]
[395304977,1764601860927,-526.510541,0.00025,7]
[395304978,1764601860940,-151.0,0.00025,7]
[395304979,1764601860951,-526.510541,0.00025,7]
[395304980,1764601860962,-151.0,0.00025,7]
[395304981,1764601860973,-526.510541,0.00025,7]
[395304982,1764601860983,-526.510541,0.00025,7]
[395304983,1764601860993,-410.254956,0.00025,7]
[395304984,1764601861003,-410.254956,0.00025,7]
[395304985,1764601861013,-2611.737863,0.00025,7]
[395304986,1764601861023,-410.254956,0.00025,7]
[395304987,1764601861033,-2611.737863,0.00025,7]
[395304988,1764601861043,-410.254956,0.00025,7]
[395304989,1764601861053,-2611.737863,0.00025,7]
[395304990,1764601861063,-2611.737863,0.00025,7]
[395304991,1764601861073,-225.18697532,0.00025206,2]
[395304992,1764601861083,-200.0,0.0002525,2]
[395304993,1764601861092,-200.0,0.0002525,2]
[395304994,1764601861102,-156.56507872,0.0002525,2]
[395304995,1764601861112,-684.0,0.00025292,2]
[395304996,1764601861120,-800.0,0.00025293,7]
[395304997,1764601861130,-500.0,0.00025298,7]
[395304998,1764601861140,-153.0,0.000253,2]
[395304999,1764601861150,-150.0,0.00025384,2]
[395305000,1764601861160,-303.04,0.00025479,2]
[395305001,1764601861171,-177.91,0.00025479,2]
[395305002,1764601861182,-177.91,0.00025479,2]
[395305003,1764601861192,-177.91,0.00025479,2]
[395305004,1764601861202,-177.91,0.00025479,2]
[395305005,1764601861212,-177.91,0.00025479,2]
[395305006,1764601861222,-177.91,0.00025479,2]
[395305007,1764601861232,-177.91,0.00025479,2]
[395305008,1764601861242,-177.91,0.00025479,2]
[395305009,1764601861252,-177.91,0.00025479,2]
[395305010,1764601861262,-909.0,0.00025498,2]
[395305011,1764601861272,-1194.0,0.00025498,2]
[395305012,1764601861282,-562.0,0.00025498,2]
[395305013,1764601861293,-4704.0,0.00025498,2]
[395305014,1764601861303,-200.0,0.00025503,2]
[395305015,1764601861313,-200.0,0.00025503,2]
[395305016,1764601861323,-150.0,0.00025554,2]
[395305017,1764601861333,-150.0,0.00025554,2]
[395305018,1764601861343,-1322.0,0.00025554,2]
[395305019,1764601861354,-610.0,0.00025554,2]
[395305020,1764601861364,-3442.0,0.00025554,2]
[395305021,1764601861374,-1258.0,0.00025554,2]
[395305022,1764601861385,-613.0,0.00025554,2]
[395305023,1764601861395,-800.0,0.00025568,7]
[395305024,1764601861406,-800.0,0.00025579,7]
[395305025,1764601861416,-320.74051982,0.00025668,2]
[395305026,1764601861427,-151.0,0.00025668,2]
[395305027,1764601861438,-386.87667747,0.00025668,2]
[395305028,1764601861448,-1800.0,0.0002567,7]
[395305029,1764601861459,-272.0522779,0.000257,2]
[395305030,1764601861469,-272.0522779,0.000257,2]
[395305031,1764601861481,-2619.68910904,0.000257,2]
[395305032,1764601861491,-684.0,0.00025703,2]
[395305033,1764601861502,-233.51889341,0.00025754,2]
[395305034,1764601861514,-200.0,0.00025758,2]
[395305035,1764601861525,-1800.0,0.00025767,7]
[395305036,1764601861536,-150.0,0.00025767,2]
[395305037,1764601861546,-1666.43,0.000258,14]
[395305038,1764601861557,-427.65493559,0.000258,7]
[395305039,1764601861568,-500.0,0.00025853,7]
[395305040,1764601861579,-152.0,0.00025871,3]
[395305041,1764601861590,-573.91764515,0.000259,2]
[395305042,1764601861600,-3263.85,0.00026,7]
[395305043,1764601861611,-7435.33596213,0.00026,10]
[395305044,1764601861621,-182.0,0.00026,7]
[395305045,1764601861632,-200.0,0.00026015,2]
[395305046,1764601861642,-684.0,0.00026114,2]
[395305047,1764601861653,-150.0,0.00026151,2]
[395305048,1764601861663,-242.15909246,0.00026302,2]
[395305049,1764601861674,-152.0,0.00026472,4]
[395305050,1764601861686,-684.0,0.00026525,2]
[395305051,1764601861696,-150.0,0.00026534,2]
[395305052,1764601861707,-500.0,0.00026575,2]
[395305053,1764601861716,-510.93178363,0.00026575,2]
[395305054,1764601861727,-1800.0,0.00026627,7]
[395305055,1764601861737,-1800.0,0.00026631,7]
[395305056,1764601861747,-933.78,0.00026676,2]
[395305057,1764601861757,-251.11897888,0.0002685,2]
[395305058,1764601861767,-999.46074504,0.000269,2]
[395305059,1764601861778,-160.93534664,0.00026918,2]
[395305060,1764601861788,-684.0,0.00026936,2]
[395305061,1764601861798,-255.58,0.00026986,120]
[395305062,1764601861811,-250.0,0.00026999,5]
[395305063,1764601861821,-250.0,0.00026999,5]
[395305064,1764601861831,-250.0,0.00026999,5]
[395305065,1764601861841,-1000.0,0.00027,7]
[395305066,1764601861854,-500.0,0.00027,2]
[395305067,1764601861864,-7000.0,0.00027,2]
[395305068,1764601861875,-202.82,0.00027035,7]
[395305069,1764601861886,-332.60791905,0.00027037,2]
[395305070,1764601861896,-151.0,0.00027037,2]
[395305071,1764601861906,-401.19111454,0.00027037,2]
[395305072,1764601861916,-668.65185757,0.00027041,2]
[395305073,1764601861927,-152.0,0.00027074,5]
[395305074,1764601861938,-500.0,0.00027206,2]
[395305075,1764601861948,-845.21331539,0.00027219,2]
[395305076,1764601861959,-684.0,0.00027347,2]
[395305077,1764601861968,-150.0,0.00027369,2]
[395305078,1764601861979,-2924.86821237,0.0002739,7]
[395305079,1764601861990,-500.0,0.00027396,2]
[395305080,1764601861999,-385.885851,0.00027397,7]
[395305081,1764601862010,-385.885851,0.00027397,7]
[395305082,1764601862019,-385.885851,0.00027397,7]
[395305083,1764601862029,-385.885851,0.00027397,7]
[395305084,1764601862039,-151.0,0.00027397,7]
[395305085,1764601862050,-619.669301,0.00027397,7]
[395305086,1764601862060,-619.669301,0.00027397,7]
[395305087,1764601862070,-619.669301,0.00027397,7]
[395305088,1764601862080,-619.669301,0.00027397,7]
[395305089,1764601862090,-500.0,0.00027397,2]
[395305090,1764601862099,-500.0,0.00027397,2]
[395305091,1764601862110,-500.0,0.00027397,2]
[395305092,1764601862120,-500.0,0.00027397,2]
[395305093,1764601862130,-500.0,0.00027397,2]
[395305094,1764601862140,-500.0,0.00027397,2]
[395305095,1764601862150,-500.0,0.00027397,2]
[395305096,1764601862160,-500.0,0.00027397,2]
[395305097,1764601862170,-500.0,0.00027397,2]
[395305098,1764601862180,-500.0,0.00027397,2]
[395305099,1764601862192,-500.0,0.00027397,2]
[395305100,1764601862202,-500.0,0.00027397,2]
[395305101,1764601862213,-500.0,0.00027397,2]
[395305102,1764601862223,-500.0,0.00027397,2]
[395305103,1764601862233,-500.0,0.00027397,2]
[395305104,1764601862243,-500.0,0.00027397,2]
[395305105,1764601862253,-500.0,0.00027397,2]
[395305106,1764601862263,-500.0,0.00027397,2]
[395305107,1764601862273,-500.0,0.00027397,2]
[395305108,1764601862283,-500.0,0.00027397,2]
[395305109,1764601862294,-500.0,0.00027397,2]
[395305110,1764601862305,-262.26730731,0.00027397,2]
[395305111,1764601862315,-398.479476,0.00027397,7]
[395305112,1764601862326,-398.479476,0.00027397,7]
[395305113,1764601862337,-398.479476,0.00027397,7]
[395305114,1764601862347,-398.479476,0.00027397,7]
[395305115,1764601862357,-1030.611774,0.00027397,7]
[395305116,1764601862368,-1030.611774,0.00027397,7]
[395305117,1764601862378,-1030.611774,0.00027397,7]
[395305118,1764601862388,-492.566537,0.00027397,7]
[395305119,1764601862398,-1030.611774,0.00027397,7]
[395305120,1764601862408,-151.0,0.00027397,7]
[395305121,1764601862418,-492.566537,0.00027397,7]
[395305122,1764601862429,-151.0,0.00027397,7]
[395305123,1764601862439,-151.0,0.00027397,7]
[395305124,1764601862450,-492.566537,0.00027397,7]
[395305125,1764601862460,-284.505183,0.00027397,7]
[395305126,1764601862469,-151.0,0.00027397,7]
[395305127,1764601862480,-284.505183,0.00027397,7]
[395305128,1764601862490,-492.566537,0.00027397,7]
[395305129,1764601862499,-151.0,0.00027397,7]
[395305130,1764601862509,-314.716829,0.00027397,7]
[395305131,1764601862519,-284.505183,0.00027397,7]
[395305132,1764601862530,-284.505183,0.00027397,7]
[395305133,1764601862540,-314.716829,0.00027397,7]
[395305134,1764601862550,-314.716829,0.00027397,7]
[395305135,1764601862560,-314.716829,0.00027397,7]
[395305136,1764601862571,-151.0,0.00027397,7]
[395305137,1764601862580,-1036.993089,0.00027397,7]
[395305138,1764601862590,-1036.993089,0.00027397,7]
[395305139,1764601862600,-291.451868,0.00027397,7]
[395305140,1764601862610,-151.0,0.00027397,7]
[395305141,1764601862619,-291.451868,0.00027397,7]
[395305142,1764601862629,-1036.993089,0.00027397,7]
[395305143,1764601862639,-291.451868,0.00027397,7]
[395305144,1764601862650,-1036.993089,0.00027397,7]
[395305145,1764601862660,-291.451868,0.00027397,7]
[395305146,1764601862670,-151.0,0.00027397,7]
[395305147,1764601862682,-257.117636,0.00027397,7]
[395305148,1764601862692,-257.117636,0.00027397,7]
[395305149,1764601862703,-257.117636,0.00027397,7]
[395305150,1764601863071,-257.117636,0.00027397,7]
[395305151,1764601863082,-504.62775049,0.00027397,10]
[395305152,1764601863093,-414.786507,0.00027397,7]
[395305153,1764601863103,-414.786507,0.00027397,7]
[395305154,1764601863112,-414.786507,0.00027397,7]
[395305155,1764601863122,-414.786507,0.00027397,7]
[395305156,1764601863132,-221.94862,0.00027397,7]
[395305157,1764601863142,-221.94862,0.00027397,7]
[395305158,1764601863152,-221.94862,0.00027397,7]
[395305159,1764601863162,-221.94862,0.00027397,7]
[395305160,1764601863172,-500.0,0.00027397,2]
[395305161,1764601863184,-500.0,0.00027397,2]
[395305162,1764601863195,-500.0,0.00027397,2]
[395305163,1764601863205,-500.0,0.00027397,2]
[395305164,1764601863215,-500.0,0.00027397,2]
[395305165,1764601863225,-500.0,0.00027397,2]
[395305166,1764601863235,-500.0,0.00027397,2]
[395305167,1764601863245,-500.0,0.00027397,2]
[395305168,1764601863255,-500.0,0.00027397,2]
[395305169,1764601863265,-500.0,0.00027397,2]
[395305170,1764601863275,-500.0,0.00027397,2]
[395305171,1764601863285,-500.0,0.00027397,2]
[395305172,1764601863295,-500.0,0.00027397,2]
[395305173,1764601863306,-500.0,0.00027397,2]
[395305174,1764601863316,-500.0,0.00027397,2]
[395305175,1764601863327,-500.0,0.00027397,2]
[395305176,1764601863337,-500.0,0.00027397,2]
[395305177,1764601863348,-500.0,0.00027397,2]
[395305178,1764601863359,-500.0,0.00027397,2]
[395305179,1764601863370,-500.0,0.00027397,2]
[395305180,1764601863381,-249.57,0.00027397,2]
[395305181,1764601863390,-300.0,0.00027397,2]
[395305182,1764601863400,-151.0,0.00027397,7]
[395305183,1764601863410,-151.0,0.00027397,7]
[395305184,1764601863420,-151.0,0.00027397,7]
[395305185,1764601863431,-151.0,0.00027397,7]
[395305186,1764601863441,-151.0,0.00027397,7]
[395305187,1764601863451,-189.367922,0.00027397,7]
[395305188,1764601863462,-151.0,0.00027397,7]
[395305189,1764601863472,-151.0,0.00027397,7]
[395305190,1764601863483,-151.0,0.00027397,7]
[395305191,1764601863493,-500.0,0.00027397,14]
[395305192,1764601863503,-215.56897999,0.00027397,5]
[395305193,1764601863513,-169.55097768,0.00027397,5]
[395305194,1764601863524,-160.08594173,0.00027397,5]
[395305195,1764601863535,-500.0,0.00027397,5]
[395305196,1764601863546,-157.67273483,0.00027397,5]
[395305197,1764601863556,-260.4103811,0.00027398,2]
[395305198,1764601863566,-161.63539812,0.000274,4]
[395305199,1764601863577,-161.63539812,0.000274,4]
[395305200,1764601863589,-161.63539812,0.000274,4]
[395305201,1764601863599,-161.63539812,0.000274,4]
[395305202,1764601863611,-161.63539812,0.000274,4]
[395305203,1764601863621,-161.63539812,0.000274,4]
[395305204,1764601863631,-161.63539812,0.000274,4]
[395305205,1764601863642,-161.63539812,0.000274,4]
[395305206,1764601863652,-161.63,0.000274,4]
[395305207,1764601863662,-169.71716803,0.000274,4]
[395305208,1764601863672,-169.71716803,0.000274,4]
[395305209,1764601863687,-169.71716803,0.000274,4]
[395305210,1764601863697,-169.71716803,0.000274,4]
[395305211,1764601863707,-169.71716803,0.000274,4]
[395305212,1764601863719,-169.71716803,0.000274,4]
[395305213,1764601863729,-169.71716803,0.000274,4]
[395305214,1764601863741,-169.71716803,0.000274,4]
[395305215,1764601863752,-169.71716803,0.000274,4]
[395305216,1764601863764,-169.71716803,0.000274,4]
[395305217,1764601863775,-169.71716803,0.000274,4]
[395305218,1764601863786,-169.71716803,0.000274,4]
[395305219,1764601863797,-169.71716803,0.000274,4]
[395305220,1764601863813,-169.71716803,0.000274,4]
[395305221,1764601863825,-169.71716803,0.000274,4]
[395305222,1764601863836,-169.71716803,0.000274,4]
[395305223,1764601863849,-169.71716803,0.000274,4]
[395305224,1764601863860,-169.71716803,0.000274,4]
[395305225,1764601863872,-169.71716803,0.000274,4]
[395305226,1764601863883,-169.71,0.000274,4]
[395305227,1764601863895,-1964.58,0.000274,2]
[395305228,1764601863910,-1964.58,0.000274,2]
[395305229,1764601863921,-1964.58,0.000274,2]
[395305230,1764601863937,-1964.58,0.000274,2]
[395305231,1764601863949,-1964.58,0.000274,2]
[395305232,1764601863959,-500.0,0.00027448,7]
[395305233,1764601863971,-500.0,0.00027618,7]
[395305234,1764601863982,-800.0,0.00027653,7]
[395305235,1764601863993,-213.747881,0.00027671,7]
[395305236,1764601864004,-213.747881,0.00027671,7]
[395305237,1764601864015,-213.747881,0.00027671,7]
[395305238,1764601864026,-213.747881,0.00027671,7]
[395305239,1764601864036,-1312.482975,0.00027671,7]
[395305240,1764601864047,-1312.482975,0.00027671,7]
[395305241,1764601864057,-1312.482975,0.00027671,7]
[395305242,1764601864068,-1312.482975,0.00027671,7]
[395305243,1764601864078,-497.4759,0.00027671,7]
[395305244,1764601864088,-707.537558,0.00027671,7]
[395305245,1764601864098,-497.4759,0.00027671,7]
[395305246,1764601864109,-707.537558,0.00027671,7]
[395305247,1764601864119,-151.0,0.00027671,7]
[395305248,1764601864129,-497.4759,0.00027671,7]
[395305249,1764601864139,-707.537558,0.00027671,7]
[395305250,1764601864149,-151.0,0.00027671,7]
[395305251,1764601864159,-497.4759,0.00027671,7]
[395305252,1764601864169,-707.537558,0.00027671,7]
[395305253,1764601864179,-159.416973,0.00027671,7]
[395305254,1764601864191,-366.043751,0.00027671,7]
[395305255,1764601864200,-159.416973,0.00027671,7]
[395305256,1764601864210,-151.0,0.00027671,7]
[395305257,1764601864220,-366.043751,0.00027671,7]
[395305258,1764601864244,-159.416973,0.00027671,7]
[395305259,1764601864258,-366.043751,0.00027671,7]
[395305260,1764601864269,-366.043751,0.00027671,7]
[395305261,1764601864280,-225.610251,0.00027671,7]
[395305262,1764601864291,-159.416973,0.00027671,7]
[395305263,1764601864303,-225.610251,0.00027671,7]
[395305264,1764601864315,-225.610251,0.00027671,7]
[395305265,1764601864326,-1375.39195,0.00027671,7]
[395305266,1764601864337,-225.610251,0.00027671,7]
[395305267,1764601864349,-1375.39195,0.00027671,7]
[395305268,1764601864360,-1375.39195,0.00027671,7]
[395305269,1764601864371,-1375.39195,0.00027671,7]
[395305270,1764601864382,-259.11682,0.00027671,7]
[395305271,1764601864393,-259.11682,0.00027671,7]
[395305272,1764601864405,-259.11682,0.00027671,7]
[395305273,1764601864416,-259.11682,0.00027671,7]
[395305274,1764601864427,-8994.05,0.00027671,2]
[395305275,1764601864442,-152.0,0.00027675,6]
[395305276,1764601864454,-3263.85,0.000277,7]
[395305277,1764601864465,-684.0,0.00027758,2]
[395305278,1764601864476,-307.41414223,0.00027803,2]
[395305279,1764601864487,-1800.0,0.00027825,7]
[395305280,1764601864498,-500.0,0.00027898,7]
[395305281,1764601864509,-500.0,0.000279,7]
[395305282,1764601864520,-2619.68910904,0.000279,2]
[395305283,1764601864531,-270.0455652,0.00027946,2]
[395305284,1764601864543,-70745.55249963,0.00028,2]
[395305285,1764601864554,-2832.19317376,0.00028,2]
[395305286,1764601866270,-1720.0,0.00028,2]
[395305287,1764601868282,-500.0,0.00015462,2]
[395305288,1764601868294,-500.0,0.00015462,2]
[395305289,1764601868304,-74.45355656,0.00015462,2]
[395305290,1764601915648,166.66,0.0002199,30]
[395305291,1764601977887,1000.0,0.00025,120]
[395305301,1764602506478,153.52,7.641e-05,2]
[395305302,1764602506680,153.52,8.336e-05,2]
[395305303,1764602506901,153.52,9.031e-05,2]
[395305304,1764602507357,153.52,9.726e-05,2]
[395305305,1764602509191,153.52,0.0001042,2]
[395305306,1764602509236,153.52,0.00011115,2]
[395305307,1764602509287,153.52,0.0001181,2]
[395305375,1764603031610,-153.52,0.00012504,2]
[395305378,1764603031621,-153.52,0.00013199,2]
[395305381,1764603031632,-185.01081451,0.00013655,2]
[395305383,1764603031642,-17.28184782,0.00013699,2]
[395305384,1764603031656,-955.04341264,0.00013699,2]
[395305385,1764603031667,-6.04473954,0.00013699,2]
[395305386,1764603031679,-300.0,0.00013755,2]
[395305387,1764603031691,-193.95526046,0.00013755,2]
[395305388,1764603031748,-31.609815,0.00013755,2]
[395305389,1764603031760,-195.0,0.00013755,2]
[395305390,1764603031774,-250.0,0.00013755,2]
[395305391,1764603031784,-195.0,0.00013755,2]
[395305392,1764603031794,-153.52,0.00013894,2]
[395305393,1764603031803,-153.52,0.00014588,2]
[395305394,1764603031813,-282.0,0.00015271,2]
[395305395,1764603031823,-153.52,0.00015283,2]
[395305396,1764603031833,-58.56314837,0.00015309,2]
[395305417,1764603038673,-209.0,0.00015152,2]
[395305418,1764603038684,-191.43685163,0.00015309,2]
[395305419,1764603038694,-151.0,0.00015309,2]
[395305420,1764603038705,-300.0,0.00015316,2]
[395305421,1764603038715,-1200.0,0.00015316,2]
[395305422,1764603038724,-150.0,0.00015317,2]
[395305423,1764603038735,-157.09283524,0.00015317,2]
[395305424,1764603038746,-498.31963205,0.00015317,2]
[395305425,1764603038756,-156.78520526,0.00015317,2]
[395305426,1764603038766,-299.99,0.00015318,2]
[395305427,1764603038776,-45819.30713481,0.00015318,2]
[395305428,1764603038788,-68267.13320404,0.00015318,2]
[395305429,1764603038800,-75282.40491871,0.00015318,2]
[395305430,1764603038812,-198232.004028,0.00015318,2]
[395305431,1764603038823,-820.7253007,0.00015318,2]
[395305432,1764603038835,-9639.70026846,0.00015318,2]
[395305433,1764603039343,-152.25662278,0.00015317,2]
[395305434,1764603039353,-500.0,0.00015317,2]
[395305435,1764603039364,-500.0,0.00015317,2]
[395305436,1764603039374,-500.0,0.00015317,2]
[395305437,1764603039384,-500.0,0.00015317,2]
[395305438,1764603039395,-500.0,0.00015317,2]
[395305439,1764603039404,-500.0,0.00015317,2]
[395305440,1764603039414,-500.0,0.00015317,2]
[395305441,1764603039425,-500.0,0.00015317,2]
[395305442,1764603039435,-500.0,0.00015317,2]
[395305443,1764603039444,-269.58436903,0.00015317,2]
[395305444,1764603039455,-500.0,0.00015317,2]
[395305445,1764603039464,-500.0,0.00015317,2]
[395305446,1764603039474,-500.0,0.00015317,2]
[395305447,1764603039487,-500.0,0.00015317,2]
[395305449,1764603039497,-500.0,0.00015317,2]
[395305450,1764603039507,-1231.15900821,0.00015318,2]
[395305452,1764603039519,-4365.89169672,0.00015318,2]
[395305453,1764603039531,-3245.24084293,0.00015318,2]
[395305454,1764603039543,-568.40564139,0.00015318,2]
[395305457,1764603039625,-85500.0,0.00015318,2]
[395305458,1764603039637,-42444.11260423,0.00015318,2]
[395305459,1764603039649,-9274.33256292,0.00015318,2]
[395305460,1764603039661,-302.64238328,0.00015318,2]
[395305461,1764603039673,-389.43608,0.00015318,2]
[395305462,1764603039698,-672.36545114,0.00015318,2]
[395305463,1764603039913,-213945.13887446,0.00015318,2]
[395305464,1764603039923,-500.0,0.00015417,2]
[395305465,1764603039933,-500.0,0.00015417,2]
[395305466,1764603039943,-486.35100787,0.00015417,2]
[395305467,1764603039952,-500.0,0.00015417,2]
[395305468,1764603039963,-485.52312637,0.00015417,2]
[395305469,1764603039973,-359.26,0.00015417,2]